fUSD/lending_fUSD_20250720
["ID","MTS","AMOUNT","RATE_DAILY","PERIOD"]
[373483459,1753019558993,-643.56,0.00020602,2]
[373483460,1753019559002,-480.0,0.00020602,2]
[373483461,1753019559013,-480.0,0.00020602,2]
[373483462,1753019559022,-491.14,0.00020602,2]
[373483463,1753019559032,-513.7,0.00020602,2]
[373483464,1753019559042,-742.91,0.00020602,2]
[373483465,1753019559052,-770.53,0.00020602,2]
[373483466,1753019559061,-480.0,0.00020602,2]
[373483467,1753019559071,-480.0,0.00020602,2]
[373483468,1753019559082,-496.38,0.00020602,2]
[373483469,1753019559092,-703.59,0.00020602,2]
[373483470,1753019559102,-559.29,0.00020602,2]
[373483471,1753019559112,-6566.95,0.00020602,2]
[373483472,1753019559122,-480.0,0.00020602,2]
[373483473,1753019559132,-649.82,0.00020602,2]
[373483474,1753019559142,-588.3,0.00020602,2]
[373483475,1753019559152,-507.08,0.00020602,2]
[373483476,1753019559162,-652.56,0.00020602,2]
[373483477,1753019559173,-873.97,0.00020602,2]
[373483478,1753019559183,-1133.69,0.00020602,2]
[373483479,1753019559193,-1078.11,0.00020602,2]
[373483480,1753019559203,-2024.83,0.00020602,2]
[373483481,1753019559213,-882.42,0.00020602,2]
[373483482,1753019559225,-562.85,0.00020602,2]
[373483483,1753019559235,-528.35,0.00020602,2]
[373483484,1753019559245,-808.63,0.00020602,2]
[373483485,1753019559255,-698.42,0.00020602,2]
[373483486,1753019559265,-481.92,0.00020602,2]
[373483487,1753019559275,-1098.19,0.00020602,2]
[373483488,1753019559284,-480.0,0.00020602,2]
[373483489,1753019559294,-1470.4,0.00020602,2]
[373483490,1753019559304,-530.18,0.00020602,2]
[373483491,1753019559314,-480.0,0.00020602,2]
[373483492,1753019559324,-542.4,0.00020602,2]
[373483493,1753019559334,-2168.69,0.00020602,2]
[373483494,1753019559344,-584.76,0.00020602,2]
[373483495,1753019559354,-480.0,0.00020602,2]
[373483496,1753019559364,-810.65,0.00020602,2]
[373483497,1753019559375,-509.75,0.00020602,2]
[373483498,1753019559385,-1074.62,0.00020602,2]
[373483499,1753019559396,-480.0,0.00020602,2]
[373483500,1753019559406,-585.83,0.00020602,2]
[373483501,1753019559416,-488.38,0.00020602,2]
[373483502,1753019559426,-1248.2,0.00020602,2]
[373483503,1753019559437,-512.42,0.00020602,2]
[373483504,1753019559447,-1171.8,0.00020602,2]
[373483505,1753019559457,-989.68,0.00020602,2]
[373483506,1753019559468,-1298.15,0.00020602,2]
[373483507,1753019559483,-1020.25,0.00020602,2]
[373483508,1753019559494,-507.62,0.00020602,2]
[373483509,1753019559503,-480.0,0.00020602,2]
[373483510,1753019559515,-523.15,0.00020602,2]
[373483511,1753019559525,-3702.53,0.00020602,2]
[373483512,1753019559536,-556.53,0.00020602,2]
[373483513,1753019559547,-480.0,0.00020602,2]
[373483514,1753019559558,-1136.01,0.00020602,2]
[373483515,1753019559567,-480.0,0.00020602,2]
[373483516,1753019559578,-480.0,0.00020602,2]
[373483517,1753019559587,-489.5,0.00020602,2]
[373483518,1753019559597,-1095.88,0.00020602,2]
[373483519,1753019559608,-480.0,0.00020602,2]
[373483520,1753019559618,-480.0,0.00020602,2]
[373483521,1753019559629,-1608.55,0.00020602,2]
[373483522,1753019559639,-3923.46,0.00020602,2]
[373483523,1753019559650,-705.3,0.00020602,2]
[373483524,1753019559661,-2237.11,0.00020602,2]
[373483525,1753019559671,-480.0,0.00020602,2]
[373483526,1753019559681,-834.1,0.00020602,2]
[373483527,1753019559691,-836.85,0.00020602,2]
[373483528,1753019559702,-480.0,0.00020602,2]
[373483529,1753019559712,-893.54,0.00020602,2]
[373483530,1753019559725,-971.86,0.00020602,2]
[373483531,1753019559735,-697.5,0.00020602,2]
[373483532,1753019559745,-525.44,0.00020602,2]
[373483533,1753019559756,-658.53,0.00020602,2]
[373483534,1753019559766,-730.73,0.00020602,2]
[373483535,1753019559776,-1146.42,0.00020602,2]
[373483536,1753019559786,-1394.43,0.00020602,2]
[373483537,1753019559796,-483.9,0.00020602,2]
[373483538,1753019559807,-480.0,0.00020602,2]
[373483539,1753019559816,-524.05,0.00020602,2]
[373483540,1753019559826,-480.0,0.00020602,2]
[373483541,1753019559836,-1227.36,0.00020602,2]
[373483542,1753019559846,-747.03,0.00020602,2]
[373483543,1753019559856,-480.0,0.00020602,2]
[373483544,1753019559866,-837.4,0.00020602,2]
[373483545,1753019559876,-6522.42,0.00020602,2]
[373483546,1753019559886,-746.83,0.00020602,2]
[373483547,1753019559896,-583.22,0.00020602,2]
[373483548,1753019559907,-4486.95,0.00020602,2]
[373483549,1753019559917,-6250.65,0.00020602,2]
[373483550,1753019559927,-482.81,0.00020602,2]
[373483551,1753019559940,-480.0,0.00020602,2]
[373483552,1753019559951,-437.87,0.00020602,2]
[373483553,1753019559961,-690.69,0.00020602,2]
[373483554,1753019559974,-1144.78,0.00020602,2]
[373483555,1753019559984,-569.37,0.00020602,2]
[373483556,1753019559994,-1957.62,0.00020602,2]
[373483557,1753019560004,-480.0,0.00020602,2]
[373483558,1753019560014,-689.85,0.00020602,2]
[373483559,1753019560024,-738.41,0.00020602,2]
[373483560,1753019560034,-490.27008358,0.00020602,2]
[373483561,1753019560044,-668.36,0.00020602,2]
[373483562,1753019560054,-932.37,0.00020602,2]
[373483563,1753019560064,-2985.1,0.00020602,2]
[373483564,1753019560074,-1143.0,0.00020602,2]
[373483565,1753019560338,-480.0,0.00020602,2]
[373483566,1753019560357,-939.17,0.00020602,2]
[373483567,1753019560367,-480.0,0.00020602,2]
[373483568,1753019560376,-480.0,0.00020602,2]
[373483569,1753019560386,-1000.0,0.00020602,2]
[373483570,1753019560396,-527.35,0.00020602,2]
[373483571,1753019560406,-1924.75,0.00020602,2]
[373483572,1753019560415,-601.3,0.00020602,2]
[373483573,1753019560425,-1898.09,0.00020602,2]
[373483574,1753019560434,-3502.66,0.00020602,2]
[373483575,1753019560444,-986.11,0.00020602,2]
[373483576,1753019560453,-1553.54,0.00020602,2]
[373483577,1753019560464,-480.0,0.00020602,2]
[373483578,1753019560479,-480.0,0.00020602,2]
[373483579,1753019560489,-947.48,0.00020602,2]
[373483580,1753019560498,-480.0,0.00020602,2]
[373483581,1753019560510,-1483.86,0.00020602,2]
[373483582,1753019560520,-1070.15,0.00020602,2]
[373483583,1753019560529,-532.55,0.00020602,2]
[373483584,1753019560539,-1553.37,0.00020602,2]
[373483585,1753019560550,-335.1,0.00020602,2]
[373483586,1753019560559,-480.0,0.00020602,2]
[373483587,1753019560568,-1194.6,0.00020602,2]
[373483588,1753019560577,-828.22,0.00020602,2]
[373483589,1753019560587,-1041.33,0.00020602,2]
[373483590,1753019560597,-1596.73,0.00020602,2]
[373483591,1753019560607,-1794.49,0.00020602,2]
[373483592,1753019560616,-2119.05,0.00020602,2]
[373483593,1753019560626,-630.93,0.00020602,2]
[373483594,1753019560636,-4638.84,0.00020602,2]
[373483595,1753019560646,-1777.66,0.00020602,2]
[373483596,1753019560656,-556.83,0.00020602,2]
[373483597,1753019560666,-480.0,0.00020602,2]
[373483598,1753019560676,-1897.84,0.00020602,2]
[373483599,1753019560686,-1256.18,0.00020602,2]
[373483600,1753019560696,-2882.58,0.00020602,2]
[373483601,1753019560706,-979.84,0.00020602,2]
[373483602,1753019560716,-707.99,0.00020602,2]
[373483603,1753019560727,-574.55,0.00020602,2]
[373483604,1753019560737,-38134.22,0.00020602,2]
[373483605,1753019560747,-1106.08,0.00020602,2]
[373483606,1753019560757,-480.0,0.00020602,2]
[373483607,1753019560767,-480.0,0.00020602,2]
[373483608,1753019560776,-773.09,0.00020602,2]
[373483609,1753019560787,-3225.28,0.00020602,2]
[373483610,1753019560796,-2593.99,0.00020602,2]
[373483611,1753019560806,-1974.09,0.00020602,2]
[373483612,1753019560815,-10449.6,0.00020602,2]
[373483613,1753019560826,-2698.38,0.00020602,2]
[373483614,1753019560835,-1260.52,0.00020602,2]
[373483615,1753019560845,-3171.67,0.00020602,2]
[373483616,1753019560855,-2207.57,0.00020602,2]
[373483617,1753019560865,-480.0,0.00020602,2]
[373483618,1753019560875,-4837.24,0.00020602,2]
[373483619,1753019560884,-1908.42,0.00020602,2]
[373483620,1753019560893,-3925.2,0.00020602,2]
[373483621,1753019560903,-1106.38,0.00020602,2]
[373483622,1753019560912,-675.33,0.00020602,2]
[373483623,1753019560922,-1549.05,0.00020602,2]
[373483624,1753019560931,-4186.58,0.00020602,2]
[373483625,1753019560941,-920.58,0.00020602,2]
[373483626,1753019560950,-575.28,0.00020602,2]
[373483627,1753019560960,-480.0,0.00020602,2]
[373483628,1753019560969,-480.0,0.00020602,2]
[373483629,1753019560979,-1601.32,0.00020602,2]
[373483630,1753019560989,-2912.14,0.00020602,2]
[373483631,1753019560999,-501.28,0.00020602,2]
[373483632,1753019561009,-480.0,0.00020602,2]
[373483633,1753019561027,-1649.03,0.00020602,2]
[373483634,1753019561043,-1575.77,0.00020602,2]
[373483635,1753019561052,-4784.89,0.00020602,2]
[373483636,1753019561061,-1937.56,0.00020602,2]
[373483637,1753019561071,-1894.53,0.00020602,2]
[373483638,1753019561080,-16754.36,0.00020602,2]
[373483639,1753019561090,-597.32,0.00020602,2]
[373483640,1753019561100,-480.0,0.00020602,2]
[373483641,1753019561109,-673.9,0.00020602,2]
[373483642,1753019561118,-1244.68,0.00020602,2]
[373483643,1753019561128,-1980.55,0.00020602,2]
[373483644,1753019561137,-480.0,0.00020602,2]
[373483645,1753019561146,-1245.96,0.00020602,2]
[373483646,1753019561156,-480.0,0.00020602,2]
[373483647,1753019561166,-6803.71,0.00020602,2]
[373483648,1753019561175,-318.18,0.00020602,2]
[373483649,1753019561185,-871.27,0.00020602,2]
[373483650,1753019561194,-1112.24,0.00020602,2]
[373483651,1753019561203,-480.0,0.00020602,2]
[373483652,1753019561212,-579.47,0.00020602,2]
[373483653,1753019561222,-1360.71,0.00020602,2]
[373483654,1753019561231,-2360.18,0.00020602,2]
[373483655,1753019561241,-957.17,0.00020602,2]
[373483656,1753019561250,-1144.57,0.00020602,2]
[373483657,1753019561259,-709.9,0.00020602,2]
[373483658,1753019561269,-3060.53,0.00020602,2]
[373483659,1753019561278,-1014.42,0.00020602,2]
[373483660,1753019561287,-666.51,0.00020602,2]
[373483661,1753019561297,-1099.37,0.00020602,2]
[373483662,1753019561306,-1194.62,0.00020602,2]
[373483663,1753019561316,-622.5,0.00020602,2]
[373483664,1753019561325,-480.0,0.00020602,2]
[373483665,1753019561334,-1106.14,0.00020602,2]
[373483666,1753019561344,-4161.68,0.00020602,2]
[373483667,1753019561354,-1224.46,0.00020602,2]
[373483668,1753019561363,-3588.19,0.00020602,2]
[373483669,1753019561373,-1009.8,0.00020602,2]
[373483670,1753019561382,-480.0,0.00020602,2]
[373483671,1753019561392,-759.09,0.00020602,2]
[373483672,1753019561401,-480.0,0.00020602,2]
[373483673,1753019561410,-480.0,0.00020602,2]
[373483674,1753019561419,-892.48,0.00020602,2]
[373483675,1753019561428,-2738.0,0.00020602,2]
[373483676,1753019561438,-2154.18,0.00020602,2]
[373483677,1753019561447,-1765.61,0.00020602,2]
[373483678,1753019561456,-563.37,0.00020602,2]
[373483679,1753019561466,-480.0,0.00020602,2]
[373483680,1753019561479,-1264.87,0.00020602,2]
[373483681,1753019561488,-1317.6,0.00020602,2]
[373483682,1753019561498,-1417.35,0.00020602,2]
[373483683,1753019561507,-3701.58,0.00020602,2]
[373483684,1753019561517,-1224.02,0.00020602,2]
[373483685,1753019561527,-494.3,0.00020602,2]
[373483686,1753019561536,-2675.44,0.00020602,2]
[373483687,1753019561545,-2516.48,0.00020602,2]
[373483688,1753019561557,-1280.96,0.00020602,2]
[373483689,1753019561567,-1234.43,0.00020602,2]
[373483690,1753019561577,-480.0,0.00020602,2]
[373483691,1753019561587,-480.0,0.00020602,2]
[373483692,1753019561596,-1639.88,0.00020602,2]
[373483693,1753019561606,-2371.21,0.00020602,2]
[373483694,1753019561616,-2621.63,0.00020602,2]
[373483695,1753019561625,-1781.89,0.00020602,2]
[373483696,1753019561635,-4290.9,0.00020602,2]
[373483697,1753019561644,-673.12,0.00020602,2]
[373483698,1753019561654,-2112.39,0.00020602,2]
[373483699,1753019561664,-480.0,0.00020602,2]
[373483700,1753019561674,-686.73,0.00020602,2]
[373483701,1753019561684,-1034.48,0.00020602,2]
[373483702,1753019561694,-509.06,0.00020602,2]
[373483703,1753019561703,-2302.39,0.00020602,2]
[373483704,1753019561713,-1841.2,0.00020602,2]
[373483705,1753019561725,-578.43,0.00020602,2]
[373483706,1753019561735,-810.97,0.00020602,2]
[373483707,1753019561744,-480.0,0.00020602,2]
[373483708,1753019561753,-510.33,0.00020602,2]
[373483709,1753019561763,-1875.92,0.00020602,2]
[373483710,1753019561773,-1830.19,0.00020602,2]
[373483711,1753019561783,-1656.2,0.00020602,2]
[373483712,1753019561792,-1530.02,0.00020602,2]
[373483713,1753019561801,-4600.51,0.00020602,2]
[373483714,1753019561811,-678.36,0.00020602,2]
[373483715,1753019561820,-1122.81,0.00020602,2]
[373483716,1753019561829,-755.77,0.00020602,2]
[373483717,1753019561839,-1854.23,0.00020602,2]
[373483718,1753019561848,-3405.09,0.00020602,2]
[373483719,1753019561858,-151.0,0.00020605,2]
[373483720,1753019561867,-7367.50465884,0.00020616,2]
[373483721,1753019561877,-500.0,0.00020616,2]
[373483722,1753019561886,-500.0,0.00020616,2]
[373483723,1753019561896,-500.0,0.00020616,2]
[373483724,1753019561906,-500.0,0.00020616,2]
[373483725,1753019561915,-500.0,0.00020616,2]
[373483726,1753019561925,-500.0,0.00020616,2]
[373483727,1753019561935,-500.0,0.00020616,2]
[373483728,1753019561945,-500.0,0.00020616,2]
[373483729,1753019561954,-500.0,0.00020616,2]
[373483730,1753019561964,-500.0,0.00020616,2]
[373483731,1753019561974,-500.0,0.00020616,2]
[373483732,1753019561984,-500.0,0.00020616,2]
[373483733,1753019561993,-500.0,0.00020616,2]
[373483734,1753019562003,-500.0,0.00020616,2]
[373483735,1753019562012,-500.0,0.00020616,2]
[373483736,1753019562022,-500.0,0.00020616,2]
[373483737,1753019562031,-500.0,0.00020616,2]
[373483738,1753019562041,-500.0,0.00020616,2]
[373483739,1753019562050,-500.0,0.00020616,2]
[373483740,1753019562059,-500.0,0.00020616,2]
[373483741,1753019562068,-500.0,0.00020616,2]
[373483742,1753019562077,-500.0,0.00020616,2]
[373483743,1753019562087,-500.0,0.00020616,2]
[373483744,1753019562096,-500.0,0.00020616,2]
[373483745,1753019562106,-500.0,0.00020616,2]
[373483746,1753019562115,-500.0,0.00020616,2]
[373483747,1753019562124,-500.0,0.00020616,2]
[373483748,1753019562134,-500.0,0.00020616,2]
[373483749,1753019562143,-500.0,0.00020616,2]
[373483750,1753019562152,-500.0,0.00020616,2]
[373483751,1753019562162,-500.0,0.00020616,2]
[373483752,1753019562171,-500.0,0.00020616,2]
[373483753,1753019562181,-500.0,0.00020616,2]
[373483754,1753019562190,-500.0,0.00020616,2]
[373483755,1753019562199,-500.0,0.00020616,2]
[373483756,1753019562208,-500.0,0.00020616,2]
[373483757,1753019562217,-500.0,0.00020616,2]
[373483758,1753019562228,-500.0,0.00020616,2]
[373483759,1753019562237,-500.0,0.00020616,2]
[373483760,1753019562246,-500.0,0.00020616,2]
[373483761,1753019562255,-500.0,0.00020616,2]
[373483762,1753019562264,-500.0,0.00020616,2]
[373483763,1753019562274,-500.0,0.00020616,2]
[373483764,1753019562284,-500.0,0.00020616,2]
[373483765,1753019562293,-500.0,0.00020616,2]
[373483766,1753019562302,-500.0,0.00020616,2]
[373483767,1753019562311,-500.0,0.00020616,2]
[373483768,1753019562320,-500.0,0.00020616,2]
[373483769,1753019562329,-500.0,0.00020616,2]
[373483770,1753019562338,-500.0,0.00020616,2]
[373483771,1753019562347,-500.0,0.00020616,2]
[373483772,1753019562357,-500.0,0.00020616,2]
[373483773,1753019562366,-500.0,0.00020616,2]
[373483774,1753019562375,-500.0,0.00020616,2]
[373483775,1753019562384,-500.0,0.00020616,2]
[373483776,1753019562394,-500.0,0.00020616,2]
[373483777,1753019562403,-500.0,0.00020616,2]
[373483778,1753019562412,-500.0,0.00020616,2]
[373483779,1753019562421,-500.0,0.00020616,2]
[373483780,1753019562431,-500.0,0.00020616,2]
[373483781,1753019562440,-500.0,0.00020616,2]
[373483782,1753019562449,-500.0,0.00020616,2]
[373483783,1753019562459,-500.0,0.00020616,2]
[373483784,1753019562471,-500.0,0.00020616,2]
[373483785,1753019562481,-500.0,0.00020616,2]
[373483786,1753019562491,-500.0,0.00020616,2]
[373483787,1753019562501,-500.0,0.00020616,2]
[373483788,1753019562510,-500.0,0.00020616,2]
[373483789,1753019562520,-500.0,0.00020616,2]
[373483790,1753019562530,-500.0,0.00020616,2]
[373483791,1753019562539,-500.0,0.00020616,2]
[373483792,1753019562548,-500.0,0.00020616,2]
[373483793,1753019562558,-500.0,0.00020616,2]
[373483794,1753019562568,-500.0,0.00020616,2]
[373483795,1753019562578,-500.0,0.00020616,2]
[373483796,1753019562587,-500.0,0.00020616,2]
[373483797,1753019562596,-500.0,0.00020616,2]
[373483798,1753019562606,-500.0,0.00020616,2]
[373483799,1753019562615,-500.0,0.00020616,2]
[373483800,1753019562624,-500.0,0.00020616,2]
[373483801,1753019562634,-500.0,0.00020616,2]
[373483802,1753019562643,-500.0,0.00020616,2]
[373483803,1753019562734,-500.0,0.00020616,2]
[373483804,1753019562744,-500.0,0.00020616,2]
[373483805,1753019562754,-500.0,0.00020616,2]
[373483806,1753019562762,-500.0,0.00020616,2]
[373483807,1753019562771,-500.0,0.00020616,2]
[373483808,1753019562780,-500.0,0.00020616,2]
[373483809,1753019562789,-500.0,0.00020616,2]
[373483810,1753019562798,-500.0,0.00020616,2]
[373483811,1753019562807,-500.0,0.00020616,2]
[373483812,1753019562816,-500.0,0.00020616,2]
[373483813,1753019562825,-500.0,0.00020616,2]
[373483814,1753019562834,-500.0,0.00020616,2]
[373483815,1753019562843,-500.0,0.00020616,2]
[373483816,1753019562851,-500.0,0.00020616,2]
[373483817,1753019562861,-500.0,0.00020616,2]
[373483818,1753019562871,-500.0,0.00020616,2]
[373483819,1753019562880,-500.0,0.00020616,2]
[373483820,1753019562889,-500.0,0.00020616,2]
[373483821,1753019562898,-500.0,0.00020616,2]
[373483822,1753019562907,-500.0,0.00020616,2]
[373483823,1753019562917,-500.0,0.00020616,2]
[373483824,1753019562926,-500.0,0.00020616,2]
[373483825,1753019562934,-500.0,0.00020616,2]
[373483826,1753019562944,-500.0,0.00020616,2]
[373483827,1753019562953,-500.0,0.00020616,2]
[373483828,1753019562962,-500.0,0.00020616,2]
[373483829,1753019562971,-500.0,0.00020616,2]
[373483830,1753019562981,-500.0,0.00020616,2]
[373483831,1753019562991,-500.0,0.00020616,2]
[373483832,1753019563000,-500.0,0.00020616,2]
[373483833,1753019563009,-500.0,0.00020616,2]
[373483834,1753019563018,-500.0,0.00020616,2]
[373483835,1753019563027,-500.0,0.00020616,2]
[373483836,1753019563036,-500.0,0.00020616,2]
[373483837,1753019563045,-500.0,0.00020616,2]
[373483838,1753019563053,-500.0,0.00020616,2]
[373483839,1753019563063,-500.0,0.00020616,2]
[373483840,1753019563072,-500.0,0.00020616,2]
[373483841,1753019563081,-500.0,0.00020616,2]
[373483842,1753019563092,-500.0,0.00020616,2]
[373483843,1753019563101,-500.0,0.00020616,2]
[373483844,1753019563110,-500.0,0.00020616,2]
[373483845,1753019563119,-500.0,0.00020616,2]
[373483846,1753019563128,-500.0,0.00020616,2]
[373483847,1753019563137,-500.0,0.00020616,2]
[373483848,1753019563147,-500.0,0.00020616,2]
[373483849,1753019563156,-500.0,0.00020616,2]
[373483850,1753019563166,-500.0,0.00020616,2]
[373483851,1753019563175,-500.0,0.00020616,2]
[373483852,1753019563184,-500.0,0.00020616,2]
[373483853,1753019563194,-500.0,0.00020616,2]
[373483854,1753019563203,-500.0,0.00020616,2]
[373483855,1753019563212,-500.0,0.00020616,2]
[373483856,1753019563221,-500.0,0.00020616,2]
[373483857,1753019563232,-500.0,0.00020616,2]
[373483858,1753019563241,-500.0,0.00020616,2]
[373483859,1753019563250,-500.0,0.00020616,2]
[373483860,1753019563259,-500.0,0.00020616,2]
[373483861,1753019563267,-500.0,0.00020616,2]
[373483862,1753019563276,-500.0,0.00020616,2]
[373483863,1753019563285,-500.0,0.00020616,2]
[373483864,1753019563295,-500.0,0.00020616,2]
[373483865,1753019563304,-500.0,0.00020616,2]
[373483866,1753019563313,-500.0,0.00020616,2]
[373483867,1753019563322,-500.0,0.00020616,2]
[373483868,1753019563331,-500.0,0.00020616,2]
[373483869,1753019563340,-500.0,0.00020616,2]
[373483870,1753019563349,-500.0,0.00020616,2]
[373483871,1753019563358,-500.0,0.00020616,2]
[373483872,1753019563367,-500.0,0.00020616,2]
[373483873,1753019563376,-500.0,0.00020616,2]
[373483874,1753019563385,-500.0,0.00020616,2]
[373483875,1753019563394,-500.0,0.00020616,2]
[373483876,1753019563403,-500.0,0.00020616,2]
[373483877,1753019563411,-500.0,0.00020616,2]
[373483878,1753019563420,-500.0,0.00020616,2]
[373483879,1753019563430,-500.0,0.00020616,2]
[373483880,1753019563439,-500.0,0.00020616,2]
[373483881,1753019563448,-500.0,0.00020616,2]
[373483882,1753019563457,-500.0,0.00020616,2]
[373483883,1753019563466,-500.0,0.00020616,2]
[373483884,1753019563480,-500.0,0.00020616,2]
[373483885,1753019563489,-500.0,0.00020616,2]
[373483886,1753019563498,-500.0,0.00020616,2]
[373483887,1753019563507,-500.0,0.00020616,2]
[373483888,1753019563518,-500.0,0.00020616,2]
[373483889,1753019563527,-500.0,0.00020616,2]
[373483890,1753019563536,-500.0,0.00020616,2]
[373483891,1753019563547,-500.0,0.00020616,2]
[373483892,1753019563555,-500.0,0.00020616,2]
[373483893,1753019563565,-500.0,0.00020616,2]
[373483894,1753019563574,-500.0,0.00020616,2]
[373483895,1753019563583,-500.0,0.00020616,2]
[373483896,1753019563593,-500.0,0.00020616,2]
[373483897,1753019563602,-500.0,0.00020616,2]
[373483898,1753019563611,-500.0,0.00020616,2]
[373483899,1753019563621,-500.0,0.00020616,2]
[373483900,1753019563630,-500.0,0.00020616,2]
[373483901,1753019563641,-500.0,0.00020616,2]
[373483902,1753019563650,-500.0,0.00020616,2]
[373483903,1753019563659,-500.0,0.00020616,2]
[373483904,1753019563669,-500.0,0.00020616,2]
[373483905,1753019563678,-500.0,0.00020616,2]
[373483906,1753019563687,-500.0,0.00020616,2]
[373483907,1753019563697,-500.0,0.00020616,2]
[373483908,1753019563706,-500.0,0.00020616,2]
[373483909,1753019563715,-500.0,0.00020616,2]
[373483910,1753019563725,-500.0,0.00020616,2]
[373483911,1753019563734,-3868.89,0.0002062,2]
[373483912,1753019563743,-317079.32315796,0.00020621,2]
[373483913,1753019563752,-152.0,0.00020629,6]
[373483914,1753019563761,-587.0,0.00020636,2]
[373483915,1753019563770,-168.0,0.00020666,2]
[373483916,1753019563779,-633.9946936,0.00020684,2]
[373483917,1753019563789,-123875.6375978,0.00020698,2]
[373483918,1753019563798,-11029.9694827,0.00020698,2]
[373483919,1753019563807,-715.965781,0.00020698,2]
[373483920,1753019563817,-1208.118273,0.00020698,2]
[373483921,1753019563826,-23721.7926167,0.00020698,2]
[373483922,1753019563835,-22113.39723734,0.000207,2]
[373483923,1753019563843,-1180.0,0.000207,4]
[373483924,1753019563853,-2168.69,0.00020711,2]
[373483925,1753019563862,-1171.8,0.00020711,2]
[373483926,1753019563872,-3702.53,0.00020711,2]
[373483927,1753019563881,-1608.55,0.00020711,2]
[373483928,1753019563890,-1394.43,0.00020711,2]
[373483929,1753019563900,-4486.95,0.00020711,2]
[373483930,1753019563909,-1957.62,0.00020711,2]
[373483931,1753019563918,-1000.0,0.00020711,2]
[373483932,1753019563927,-947.48,0.00020711,2]
[373483933,1753019563936,-2119.05,0.00020711,2]
[373483934,1753019563945,-1974.09,0.00020711,2]
[373483935,1753019563954,-4784.89,0.00020711,2]
[373483936,1753019563963,-1106.14,0.00020711,2]
[373483937,1753019563972,-1264.87,0.00020711,2]
[373483938,1753019563982,-2621.63,0.00020711,2]
[373483939,1753019563991,-151.0,0.00020712,2]
[373483940,1753019564001,-480.0,0.00020712,2]
[373483941,1753019564010,-480.0,0.00020712,2]
[373483942,1753019564019,-608.93993893,0.00020712,2]
[373483943,1753019564028,-480.0,0.00020712,2]
[373483944,1753019564037,-480.0,0.00020712,2]
[373483945,1753019564046,-991.02,0.00020712,2]
[373483946,1753019564056,-433.50406611,0.00020712,2]
[373483947,1753019564065,-573.77,0.00020712,2]
[373483948,1753019564075,-759.54,0.00020712,2]
[373483949,1753019564084,-1132.31,0.00020712,2]
[373483950,1753019564093,-817.3,0.00020712,2]
[373483951,1753019564103,-5060.37,0.00020712,2]
[373483952,1753019564112,-561.39,0.00020712,2]
[373483953,1753019564121,-1056.44,0.00020712,2]
[373483954,1753019564130,-561.76,0.00020712,2]
[373483955,1753019564140,-1184.53,0.00020712,2]
[373483956,1753019564149,-1722.64,0.00020712,2]
[373483957,1753019564159,-708.25,0.00020712,2]
[373483958,1753019564168,-640.15,0.00020712,2]